bitfinex-derivatives/quotes_SOLF0:USTF0_20250212
["timestamp","ask_amount","ask_price","bid_price","bid_amount"]
[1739334606472,9.24473887,193.94,193.91,0.03549867]
[1739334607775,5.158,193.92,193.91,0.03549867]
[1739334607970,9.24473887,193.94,193.91,0.03549867]
[1739334608470,14.36787431,193.92,193.91,0.03549867]
[1739334608671,5.158,193.92,193.91,0.03549867]
[1739334609274,0.03486456,193.94,193.91,0.03549867]
[1739334609577,0.03486456,193.94,193.92,9.20987431]
[1739334610174,0.03486456,193.94,193.91,0.03549867]
[1739334611273,0.03486456,193.94,193.92,9.20987431]
[1739334612880,5.1577,193.93,193.91,0.03549867]
[1739334613071,9.24473887,193.94,193.91,0.03549867]
[1739334613978,5.1577,193.93,193.91,0.03549867]
[1739334614884,14.40223887,193.94,193.91,0.03549867]
[1739334615074,0.03486456,193.94,193.91,0.03549867]
[1739334616883,5.158,193.93,193.91,0.03549867]
[1739334617080,9.20987431,193.92,193.91,0.03549867]
[1739334617387,9.20987431,193.92,193.84,82.00854019]
[1739334617584,9.20987431,193.88,193.84,72.79866588]
[1739334618585,5.1596,193.87,193.84,72.83388194]
[1739334618784,9.2468033,193.88,193.84,72.83388194]
[1739334619289,9.20987431,193.86,193.84,0.03521606]
[1739334619679,9.20987431,193.86,193.78,9.20987431]
[1739334619880,9.20987431,193.82,193.76,9.20987431]
[1739334620085,9.20987431,193.84,193.78,9.20987431]
[1739334620285,9.20987431,193.86,193.78,9.20987431]
[1739334620686,9.20987431,193.84,193.78,9.20987431]
[1739334620888,9.20987431,193.84,193.76,9.20987431]
[1739334621084,5.1605,193.83,193.8,0.03960625]
[1739334621284,9.24566364,193.84,193.8,0.03960625]
[1739334621685,9.20987431,193.82,193.8,0.03960625]
[1739334622488,5.1609,193.81,193.8,0.03960625]
[1739334623791,5.1618,193.78,193.72,14.37317431]
[1739334623985,5.1618,193.78,193.72,9.20987431]
[1739334623986,9.20987431,193.78,193.72,9.20987431]
[1739334624182,9.20987431,193.78,193.7,9.20987431]
[1739334624383,1.558,193.81,193.7,9.20987431]
[1739334624384,5.1627,193.75,193.7,9.20987431]
[1739334624582,9.20987431,193.76,193.7,9.20987431]
[1739334624983,0.03845077,193.75,193.71,0.03218718]
[1739334625289,5.20105077,193.75,193.71,0.03218718]
[1739334625486,0.03845077,193.75,193.71,0.03218718]
[1739334625795,14.37287431,193.74,193.71,0.03218718]
[1739334625985,0.03845077,193.75,193.71,0.03218718]
[1739334626590,5.1629,193.74,193.71,0.03218718]
[1739334627193,0.03845077,193.75,193.71,0.03218718]
[1739334627393,5.1633,193.72,193.71,0.03218718]
[1739334627691,9.20987431,193.74,193.71,0.03218718]
[1739334627891,5.1632,193.73,193.71,0.03218718]
[1739334628083,9.20987431,193.74,193.71,0.03218718]
[1739334628994,5.1633,193.73,193.71,0.03218718]
[1739334629191,9.20987431,193.74,193.71,0.03218718]
[1739334629588,9.20987431,193.72,193.71,0.03218718]
[1739334629794,14.37317431,193.72,193.71,0.03218718]
[1739334630096,9.20987431,193.72,193.71,0.03218718]
[1739334630987,9.20987431,193.72,193.62,9.20987431]
[1739334631192,9.20987431,193.68,193.62,9.20987431]
[1739334631784,14.37427431,193.68,193.62,9.20987431]
[1739334632191,0.03661053,193.67,193.62,9.20987431]
[1739334632386,0.03661053,193.67,193.6,10.70727431]
[1739334632586,9.20987431,193.66,193.6,9.20987431]
[1739334633594,0.03661053,193.67,193.6,5.1665]
[1739334634193,0.03661053,193.67,193.59,1.6277]
[1739334634696,5.165,193.66,193.59,6.7945]
[1739334634994,5.165,193.66,193.59,5.1668]
[1739334635392,0.03661053,193.67,193.6,5.1665]
[1739334635892,0.03661053,193.67,193.62,5.166]
[1739334636095,0.03661053,193.67,193.63,14.40830025]
[1739334636596,0.03661053,193.67,193.66,19.57320025]
[1739334637992,0.03661053,193.67,193.66,14.40830025]
[1739334639101,0.03661053,193.67,193.66,19.57320025]
[1739334639401,0.03661053,193.67,193.66,14.40830025]
[1739334639591,0.03661053,193.67,193.64,5.1654]
[1739334639790,0.03661053,193.67,193.63,14.40830025]
[1739334640198,0.03661053,193.67,193.64,5.1652]
[1739334640498,0.03661053,193.67,193.63,14.40830025]
[1739334640694,0.03661053,193.67,193.65,5.1649]
[1739334640895,0.03661053,193.67,193.63,14.40830025]
[1739334641398,14.40830025,193.78,193.66,14.40830025]
[1739334641892,14.40830025,193.78,193.67,1.5018]
[1739334642292,14.40830025,193.78,193.68,5.1644]
[1739334642598,14.40830025,193.78,193.67,1.5018]
[1739334642795,0.03618859,193.74,193.71,0.03661053]
[1739334642996,5.1633,193.72,193.71,0.03661053]
[1739334644193,5.1646,193.68,193.61,6.7873]
[1739334644593,14.40830025,193.73,193.61,1.6212]
[1739334644594,5.164,193.7,193.61,1.6212]
[1739334644795,14.40830025,193.73,193.61,1.6212]
[1739334645291,0.03689394,193.69,193.61,1.6212]
[1739334645796,5.1646,193.68,193.62,5.166]
[1739334645997,0.03689394,193.69,193.62,5.166]
[1739334646399,0.03689394,193.69,193.61,1.6212]
[1739334646596,5.1648,193.67,193.61,6.7874]
[1739334646796,5.1648,193.67,193.61,1.6212]
[1739334646998,0.03689394,193.69,193.63,14.40830025]
[1739334647898,0.03689394,193.69,193.65,5.165]
[1739334648199,0.03689394,193.69,193.63,14.40830025]
[1739334648401,0.03689394,193.69,193.68,5.1644]
[1739334648602,14.40830025,193.78,193.66,14.40830025]
[1739334649104,5.1625,193.75,193.68,5.1644]
[1739334649504,14.40830025,193.78,193.63,14.40830025]
[1739334649699,14.40830025,193.75,193.63,14.40830025]
[1739334649905,0.03465594,193.73,193.7,0.03689395]
[1739334650806,5.1634,193.72,193.7,0.03689395]
[1739334651106,0.03465594,193.73,193.7,0.03689395]
[1739334651506,5.1636,193.71,193.7,0.03689395]
[1739334652206,5.1634,193.72,193.7,0.03689395]
[1739334652808,5.1636,193.71,193.7,0.03689395]
[1739334660310,5.1662,193.62,193.51,14.40830025]
[1739334660509,14.40830025,193.63,193.5,22.9181582]
[1739334660712,14.40830025,193.66,193.54,14.40830025]
[1739334661413,14.40830025,193.66,193.54,5.1681]
[1739334661612,0.03499556,193.62,193.54,5.1681]
[1739334661814,5.167,193.59,193.5,37.32645845]
[1739334662013,0.03499556,193.62,193.5,37.32645845]
[1739334662314,0.03818622,193.58,193.53,14.40830025]
[1739334662710,14.40830025,193.66,193.56,14.40830025]
[1739334662918,15.95320025,193.69,193.56,14.40830025]
[1739334663415,5.1655,193.65,193.57,5.1673]
[1739334663615,15.95320025,193.69,193.57,5.1673]
[1739334663616,15.95320025,193.69,193.57,8.3235]
[1739334663816,15.95320025,193.69,193.57,3.1562]
[1739334664020,5.1655,193.64,193.61,0.03486528]
[1739334664211,0.03703602,193.65,193.61,0.03486528]
[1739334665314,0.03703602,193.65,193.62,14.40830025]
[1739334666017,83.82027983,193.74,193.62,14.40830025]
[1739334666411,83.82027983,193.74,193.66,5.1647]
[1739334666612,83.82027983,193.74,193.65,14.40830025]
[1739334667015,83.82027983,193.74,193.68,5.1644]
[1739334667216,0.03719347,193.71,193.68,5.20178334]
[1739334667713,0.03719347,193.71,193.68,0.03738334]
[1739334669018,0.03719347,193.71,193.7,5.1639]
[1739334669415,0.03719347,193.71,193.68,5.20148334]
[1739334669612,0.03719347,193.71,193.68,0.03738334]
[1739334670013,0.03719347,193.71,193.69,5.1641]
[1739334670218,0.03719347,193.71,193.68,0.03738334]
[1739334670513,0.03719347,193.71,193.7,5.1639]
[1739334670916,0.03719347,193.71,193.68,0.03738334]
[1739334671522,14.40830025,193.78,193.68,0.03738334]
[1739334671825,19.57030025,193.78,193.7,5.1638]
[1739334672319,14.40830025,193.78,193.65,1.5835]
[1739334672521,14.40830025,193.78,193.68,5.1641]
[1739334672722,14.40830025,193.78,193.65,1.5835]
[1739334672723,0.03750325,193.73,193.7,0.03827528]
[1739334673812,0.03750325,193.73,193.71,5.1636]
[1739334674013,14.40830025,193.81,193.7,14.44657553]
[1739334674219,14.40830025,193.81,193.71,1.6008]
[1739334674420,14.40830025,193.81,193.74,5.1628]
[1739334674620,14.40830025,193.81,193.72,1.4779]
[1739334675314,0.03728855,193.78,193.75,0.03576644]
[1739334676125,14.40830025,193.84,193.75,0.03576644]
[1739334676428,14.40830025,193.87,193.75,0.03576644]
[1739334676627,94.96879165,193.88,193.76,14.40830025]
[1739334676818,94.96879165,193.88,193.79,14.40830025]
[1739334677223,83.82027983,193.88,193.79,14.40830025]
[1739334677418,0.03475827,193.85,193.82,14.44756269]
[1739334677621,83.82027983,193.88,193.83,1.538]
[1739334678827,0.03383374,193.87,193.84,0.03764615]
[1739334680027,14.44213399,193.87,193.84,0.03764615]
[1739334680222,5.1599,193.85,193.84,0.03764615]
[1739334681229,5.1612,193.81,193.73,14.40830025]
[1739334681622,14.40830025,193.8,193.71,1.5138]
[1739334681829,5.1621,193.77,193.7,1.5942]
[1739334682127,14.40830025,193.77,193.7,1.5942]
[1739334682517,0.03646422,193.75,193.72,0.03646096]
[1739334683526,0.03646422,193.75,193.73,5.1631]
[1739334683726,0.03646422,193.75,193.72,0.03646096]
[1739334686828,0.03646422,193.75,193.73,5.1631]
[1739334688342,0.03646422,193.75,193.74,5.1628]
[1739334688526,5.1609,193.82,193.73,14.40830025]
[1739334688725,5.1609,193.82,193.75,5.1623]
[1739334689125,5.1609,193.82,193.73,16.03830025]
[1739334689828,0.03706782,193.79,193.76,0.03387577]
[1739334690831,0.03706782,193.79,193.76,14.44217602]
[1739334691027,15.88630025,193.89,193.76,14.44217602]
[1739334691226,5.1597,193.86,193.8,5.1611]
[1739334691727,15.88630025,193.89,193.79,14.40830025]
[1739334691927,15.88630025,193.89,193.76,14.40830025]
[1739334692325,5.1606,193.83,193.82,0.03371604]
[1739334692927,5.1601,193.84,193.82,0.03371604]
[1739334693625,5.1604,193.83,193.82,0.03371604]
[1739334694432,19.56870025,193.83,193.82,0.03371604]
[1739334694836,5.1616,193.79,193.74,1.5211]
[1739334695031,14.40830025,193.83,193.74,1.5211]
[1739334695227,14.40830025,193.86,193.74,1.5211]
[1739334695430,5.1606,193.83,193.74,1.5211]
[1739334696030,0.03447846,193.8,193.78,5.1617]
[1739334696435,14.40830025,193.86,193.77,0.03452522]
[1739334696630,0.03793332,193.81,193.77,5.19642522]
[1739334696836,0.03793332,193.81,193.79,14.40830025]
[1739334697836,17.48580025,193.92,193.79,14.40830025]
[1739334698238,5.1591,193.89,193.83,5.1604]
[1739334698437,5.1591,193.89,193.79,14.40830025]
[1739334698842,17.48580025,193.92,193.79,14.40830025]
[1739334699142,0.03619619,193.86,193.82,5.19825285]
[1739334699342,0.03619619,193.86,193.82,0.03785285]
[1739334700540,0.03619619,193.86,193.82,5.19845285]
[1739334701645,0.03619619,193.86,193.82,0.03785285]
[1739334703742,0.03619619,193.86,193.82,5.19855285]
[1739334704545,0.03619619,193.86,193.82,0.03785285]
[1739334705546,0.03619619,193.86,193.83,5.1602]
[1739334705745,0.03619619,193.86,193.82,0.03785285]
[1739334706047,0.03619619,193.86,193.82,14.4461531]
[1739334706249,0.03619619,193.86,193.85,5.1599]
[1739334706846,0.03619619,193.86,193.85,19.56820025]
[1739334707045,0.03619619,193.86,193.85,5.1599]
[1739334710948,0.03619619,193.86,193.83,4.7323]
[1739334711144,0.03619619,193.86,193.83,3.1226]
[1739334711548,0.03619619,193.86,193.83,8.2827]
[1739334711849,0.03619619,193.86,193.83,3.1226]
[1739334713245,0.03619619,193.86,193.84,5.1601]
[1739334713652,0.03619619,193.86,193.83,1.5504]
[1739334713853,0.03619619,193.86,193.82,14.4461531]
[1739334714750,0.03619619,193.86,193.83,5.1603]
[1739334714951,0.03619619,193.86,193.82,14.4461531]
[1739334715150,0.03619619,193.86,193.82,0.03785285]
[1739334715351,0.03619619,193.86,193.83,5.1604]
[1739334716755,0.03619619,193.86,193.82,0.03785285]
[1739334718057,5.19579619,193.86,193.82,0.03785285]
[1739334718452,0.03619619,193.86,193.82,0.03785285]
[1739334720559,0.03619619,193.86,193.82,5.19835285]
[1739334721161,0.03619619,193.86,193.82,0.03785285]
[1739334721760,0.03619619,193.86,193.82,5.19845285]
[1739334722055,0.03619619,193.86,193.82,0.03785285]
[1739334722454,5.19579619,193.86,193.82,0.03785285]
[1739334722655,0.03619619,193.86,193.82,0.03785285]
[1739334724061,14.44449644,193.86,193.82,0.03785285]
[1739334724364,5.1604,193.83,193.82,0.03785285]
[1739334724864,14.44449644,193.86,193.82,0.03785285]
[1739334725462,5.1604,193.83,193.82,0.03785285]
[1739334729461,14.44449644,193.86,193.73,86.73222294]
[1739334729665,5.1617,193.78,193.73,72.32392269]
[1739334730166,14.40830025,193.83,193.73,72.32392269]
[1739334730366,1.5852,193.82,193.73,72.32392269]
[1739334730561,5.1614,193.8,193.73,72.32392269]
[1739334730761,0.03793315,193.79,193.76,0.03748623]
[1739334731261,5.162,193.78,193.76,0.03748623]
[1739334731566,0.03793315,193.79,193.76,0.03748623]
[1739334732268,5.1617,193.78,193.76,0.03748623]
[1739334732466,0.03793315,193.79,193.76,0.03748623]
[1739334733359,0.03793315,193.79,193.78,5.1617]
[1739334733767,0.03793315,193.79,193.77,5.1619]
[1739334736370,0.03793315,193.79,193.78,5.1617]
[1739334736870,5.1599,193.85,193.79,5.1614]
[1739334737272,5.1591,193.88,193.81,14.40830025]
[1739334737476,1.5969,193.89,193.81,14.40830025]
[1739334737971,1.5969,193.89,193.79,1.6039]
[1739334738165,0.03878114,193.87,193.83,0.03800163]
[1739334738564,5.1602,193.84,193.83,0.03800163]
[1739334739572,0.03878114,193.87,193.83,0.03800163]
[1739334739768,5.1598,193.86,193.83,0.03800163]
[1739334740069,0.03878114,193.87,193.83,0.03800163]
[1739334740875,5.1597,193.86,193.83,0.03800163]
[1739334741075,0.03878114,193.87,193.83,0.03800163]
[1739334741474,5.1601,193.84,193.83,0.03800163]
[1739334743279,0.03878114,193.87,193.83,0.03800163]
[1739334744978,0.03878114,193.87,193.83,5.19830163]
[1739334746282,0.03878114,193.87,193.83,0.03800163]
[1739334746583,0.03878114,193.87,193.84,14.40830025]
[1739334747477,0.03878114,193.87,193.83,0.03800163]
[1739334747673,0.03878114,193.87,193.83,5.19840163]
[1739334748282,0.03878114,193.87,193.86,5.1596]
[1739334748986,0.03878114,193.87,193.85,5.1599]
[1739334750677,0.03878114,193.87,193.86,5.1596]
[1739334752585,0.03878114,193.87,193.84,5.16]
[1739334753783,0.03878114,193.87,193.83,0.03800163]
[1739334753980,0.03878114,193.87,193.86,5.1596]
[1739334755075,0.03878114,193.87,193.83,0.03800163]
[1739334757580,5.1597,193.86,193.83,0.03800163]
[1739334758485,0.03878114,193.87,193.83,0.03800163]
[1739334758681,5.19818114,193.87,193.83,0.03800163]
[1739334759388,0.03878114,193.87,193.83,0.03800163]
[1739334760085,0.03878114,193.87,193.83,14.44630188]
[1739334760786,0.03878114,193.87,193.85,5.1598]
[1739334761888,0.03878114,193.87,193.86,5.1596]
[1739334762289,195.0,193.95,193.89,5.1586]
[1739334762491,1.6325,193.96,193.86,14.40830025]
[1739334763383,0.03283235,193.93,193.89,0.03433669]
[1739334765394,5.1581,193.92,193.89,0.03433669]
[1739334765888,0.03283235,193.93,193.89,0.03433669]
[1739334767291,5.1585,193.9,193.89,0.03433669]
[1739334768695,14.4411326,193.93,193.8,22.75370025]
[1739334768895,5.16,193.85,193.8,8.3454]
[1739334769492,5.1604,193.83,193.8,1.5769]
[1739334769696,1.5968,193.89,193.77,14.40830025]
[1739334769993,0.03364429,193.83,193.8,0.03329257]
[1739334771493,195.0,193.95,193.82,14.40830025]
[1739334772396,195.0,193.95,193.85,19.56790025]
[1739334772697,85.30077983,193.96,193.85,14.40830025]
[1739334772893,0.03925771,193.92,193.88,0.03395087]
[1739334773492,0.03925771,193.92,193.88,5.19305087]
[1739334773791,0.03925771,193.92,193.88,14.44225112]
[1739334773995,0.03925771,193.92,193.9,5.1585]
[1739334774294,0.03925771,193.92,193.88,14.44225112]
[1739334774893,0.03925771,193.92,193.88,19.60105112]
[1739334775092,0.03925771,193.92,193.88,14.44225112]
[1739334775597,0.03925771,193.92,193.88,19.60135112]
[1739334776198,0.03925771,193.92,193.88,14.44225112]
[1739334776895,0.03925771,193.92,193.88,0.03395087]
[1739334777297,5.16,193.85,193.79,3.1089]
[1739334778191,14.40830025,193.89,193.79,3.1089]
[1739334778595,0.03720252,193.84,193.8,0.03693297]
[1739334778894,5.19750252,193.84,193.8,0.03693297]
[1739334780002,0.03720252,193.84,193.8,0.03693297]
[1739334780599,5.1609,193.82,193.8,0.03693297]
[1739334780996,0.03720252,193.84,193.8,0.03693297]
[1739334781600,0.03720252,193.84,193.8,5.19813297]
[1739334781900,0.03720252,193.84,193.8,0.03693297]
[1739334782100,0.03720252,193.84,193.82,14.40830025]
[1739334782997,0.03720252,193.84,193.8,0.03693297]
[1739334783500,5.1605,193.83,193.8,0.03693297]
[1739334783895,0.03720252,193.84,193.8,0.03693297]
[1739334785895,0.03720252,193.84,193.81,5.1609]
[1739334786102,0.03720252,193.84,193.82,14.40830025]
[1739334786491,195.0,193.93,193.82,14.40830025]
[1739334786696,4.7535,193.94,193.87,14.40830025]
[1739334786897,4.7535,193.94,193.84,14.40830025]
[1739334787098,4.7535,193.94,193.81,14.40830025]
[1739334787391,5.1593,193.88,193.81,19.56900025]
[1739334787599,0.03532466,193.89,193.86,0.03696759]
[1739334788998,5.1591,193.88,193.86,0.03696759]
[1739334789995,0.03532466,193.89,193.86,0.03696759]
[1739334794696,5.1593,193.87,193.86,0.03696759]
[1739334796606,5.1606,193.83,193.78,5.1617]
[1739334796804,14.40830025,193.87,193.77,14.40830025]
[1739334797003,1.5947,193.86,193.74,14.40830025]
[1739334797206,3.1718,193.86,193.74,14.40830025]
[1739334797707,0.03308042,193.82,193.78,0.03464751]
[1739334800506,5.19378042,193.82,193.78,0.03464751]
[1739334800906,0.03308042,193.82,193.78,0.03464751]
[1739334801908,5.161,193.81,193.78,0.03464751]
[1739334802409,5.1615,193.79,193.78,0.03464751]
[1739334803606,15.93010025,193.81,193.68,14.40830025]
[1739334803805,1.5218,193.81,193.71,14.40830025]
[1739334804005,195.0,193.83,193.74,14.40830025]
[1739334804307,5.1609,193.82,193.75,5.1625]
[1739334804507,3.1718,193.86,193.74,14.40830025]
[1739334804709,3.1718,193.86,193.77,5.2001996]
[1739334804710,0.03371471,193.8,193.77,5.2001996]
[1739334805104,5.1615,193.79,193.77,0.0383996]
[1739334805305,0.03371471,193.8,193.77,0.0383996]
[1739334805609,5.1617,193.78,193.77,0.0383996]
[1739334806308,0.03371471,193.8,193.77,0.0383996]
[1739334807609,5.1629,193.74,193.7,5.1639]
[1739334808006,5.1634,193.72,193.67,6.6732]
[1739334808206,14.40830025,193.75,193.64,14.40830025]
[1739334808402,14.40830025,193.75,193.55,138.41793163]
[1739334808403,14.40830025,193.75,193.61,14.40830025]
[1739334808602,5.1645,193.68,193.61,14.40830025]
[1739334808808,5.1645,193.68,193.66,0.03414919]
[1739334809214,5.1642,193.69,193.66,0.03414919]
[1739334809511,0.03895722,193.7,193.66,0.03414919]
[1739334810914,0.03895722,193.7,193.67,5.1644]
[1739334811215,0.03895722,193.7,193.67,14.40830025]
[1739334812510,0.03895722,193.7,193.67,15.96920025]
[1739334812710,0.03895722,193.7,193.68,1.6357]
[1739334813009,0.03895722,193.7,193.69,5.1641]
[1739334813209,0.03895722,193.7,193.68,1.6357]
[1739334813409,0.03895722,193.7,193.67,15.96920025]
[1739334813611,0.03895722,193.7,193.66,0.03414919]
[1739334816322,5.1642,193.69,193.66,0.03414919]
[1739334817221,5.1645,193.68,193.66,0.03414919]
[1739334817421,0.03895722,193.7,193.66,0.03414919]
[1739334818117,5.1647,193.67,193.66,0.03414919]
[1739334819123,5.1642,193.69,193.66,0.03414919]
[1739334819319,0.03895722,193.7,193.66,0.03414919]
[1739334821021,0.03895722,193.7,193.66,5.19904919]
[1739334821924,5.20305722,193.7,193.66,0.03414919]
[1739334822124,0.03895722,193.7,193.66,0.03414919]
[1739334822525,0.03895722,193.7,193.68,5.1642]
[1739334822724,0.03895722,193.7,193.66,0.03414919]
[1739334823129,0.03895722,193.7,193.69,5.1641]
[1739334823824,0.03895722,193.7,193.67,14.40830025]
[1739334824725,0.03895722,193.7,193.67,19.57290025]
[1739334825422,0.03895722,193.7,193.67,14.40830025]
[1739334825926,0.03895722,193.7,193.66,0.03414919]
[1739334826324,5.1645,193.68,193.66,0.03414919]
[1739334826521,0.03895722,193.7,193.66,0.03414919]
[1739334826927,5.20285722,193.7,193.66,0.03414919]
[1739334827928,5.1642,193.69,193.66,0.03414919]
[1739334828724,5.20285722,193.7,193.66,0.03414919]
[1739334828932,0.03895722,193.7,193.66,5.19894919]
[1739334829532,0.03895722,193.7,193.66,0.03414919]
[1739334830826,5.1642,193.69,193.66,0.03414919]
[1739334831027,0.03895722,193.7,193.66,0.03414919]
[1739334832732,5.1644,193.68,193.66,0.03414919]
[1739334832930,0.03895722,193.7,193.66,0.03414919]
[1739334834331,5.1645,193.68,193.66,0.03414919]
[1739334834729,0.03895722,193.7,193.66,0.03414919]
[1739334834925,5.1647,193.67,193.66,0.03414919]
[1739334842238,5.1647,193.67,193.59,1.4888]
[1739334842239,1.5361,193.69,193.57,75.25157484]
[1739334842439,1.5361,193.69,193.58,14.40830025]
[1739334842637,1.5361,193.69,193.61,5.1662]
[1739334842842,14.40830025,193.64,193.52,14.40830025]
[1739334843239,5.1664,193.61,193.52,14.40830025]
[1739334843444,0.03300572,193.6,193.56,0.03715265]
[1739334843840,0.03356829,193.6,193.56,0.03924107]
[1739334844140,195.0,193.68,193.58,14.40830025]
[1739334844347,5.1644,193.69,193.61,14.40830025]
[1739334844644,14.40830025,193.73,193.61,14.40830025]
[1739334844946,3.0686,193.74,193.64,14.40830025]
[1739334845245,83.85929906,193.71,193.67,14.44185083]
[1739334845542,83.85929906,193.71,193.7,14.40830025]
[1739334846345,66.61559906,193.71,193.7,14.40830025]
[1739334846649,65.89029906,193.71,193.7,19.57220025]
[1739334847146,135.54580727,193.72,193.7,19.57220025]
[1739334847449,83.10987392,193.72,193.7,19.57220025]
[1739334847744,83.10987392,193.72,193.7,14.40830025]
[1739334847937,9.7933,193.81,193.7,14.40830025]
[1739334848137,9.7933,193.81,193.73,19.57140025]
[1739334848346,0.03361845,193.77,193.73,19.57140025]
[1739334848547,0.03361845,193.77,193.74,0.03577976]
[1739334848740,0.03361845,193.77,193.76,14.40830025]
[1739334849542,0.03361845,193.77,193.76,19.57060025]
[1739334849743,3.0814,193.86,193.76,14.40830025]
[1739334849939,3.0814,193.86,193.79,14.40830025]
[1739334850147,14.40830025,193.9,193.81,5.1609]
[1739334850345,17.41810025,193.96,193.85,14.40830025]
[1739334850746,17.41810025,193.96,193.82,14.40830025]
[1739334851048,5.1583,193.91,193.89,0.0389014]
[1739334851244,0.03964423,193.92,193.89,0.0389014]
[1739334851738,5.1583,193.91,193.89,0.0389014]
[1739334851943,0.03964423,193.92,193.89,0.0389014]
[1739334852847,5.1583,193.91,193.89,0.0389014]
[1739334853950,5.1585,193.9,193.89,0.0389014]
[1739334856153,5.1596,193.87,193.78,22.99134351]
[1739334856353,1.5407,193.91,193.78,22.99134351]
[1739334856748,5.1599,193.86,193.79,5.1615]
[1739334856953,195.0,193.95,193.84,22.99134351]
[1739334857151,3.0098,193.96,193.84,22.99134351]
[1739334857347,0.03808323,193.91,193.88,0.03421739]
[1739334857859,5.1587,193.9,193.88,0.03421739]
[1739334858047,0.03808323,193.91,193.88,0.03421739]
[1739334859054,22.99134351,193.89,193.73,22.99134351]
[1739334859254,195.0,193.9,193.73,22.99134351]
[1739334859451,195.0,193.9,193.76,22.99134351]
[1739334859654,5.16,193.85,193.76,28.15344351]
[1739334859850,195.0,193.9,193.73,22.99134351]
[1739334860049,0.03276624,193.82,193.79,0.03933393]
[1739334860450,1.629,193.87,193.71,28.605332]
[1739334860650,0.03455158,193.82,193.71,28.605332]
[1739334861654,5.1615,193.79,193.71,28.605332]
[1739334861855,0.03455158,193.82,193.75,0.03542266]
[1739334862153,22.99134351,193.82,193.67,22.99134351]
[1739334862356,5.1624,193.76,193.68,5.1642]
[1739334862556,195.0,193.84,193.73,0.03688951]
[1739334862751,0.03343902,193.74,193.73,5.19988951]
[1739334862950,5.161,193.81,193.73,5.163]
[1739334863145,195.0,193.84,193.72,0.03595646]
[1739334863356,200.1604,193.84,193.76,5.1621]
[1739334863555,0.0330571,193.8,193.76,5.1621]
[1739334863759,0.0330571,193.8,193.78,0.03675844]
[1739334865958,0.0014571,193.8,193.78,0.03675844]
[1739334866162,0.0014571,193.8,193.79,22.99134351]
[1739334866354,5.1591,193.89,193.79,22.99134351]
[1739334866554,1.5231,193.9,193.79,22.99134351]
[1739334866760,1.5231,193.9,193.84,5.1601]
[1739334866957,1.5231,193.9,193.79,22.99134351]
[1739334867458,0.03708972,193.86,193.83,0.03497315]
[1739334870459,5.19678972,193.86,193.83,0.03497315]
[1739334870956,0.03708972,193.86,193.83,0.03497315]
[1739334871368,5.1601,193.84,193.83,0.03497315]
[1739334871558,0.03708972,193.86,193.73,22.99134351]
[1739334871762,1.5231,193.9,193.73,22.99134351]
[1739334871966,5.161,193.81,193.75,5.1623]
[1739334872156,22.99134351,193.88,193.7,22.99134351]
[1739334872362,22.99134351,193.85,193.7,22.99134351]
[1739334872762,0.03775827,193.79,193.76,0.03949984]
[1739334873367,5.19945827,193.79,193.76,0.03949984]
[1739334874865,0.03775827,193.79,193.76,0.03949984]
[1739334875667,5.19945827,193.79,193.76,0.03949984]
[1739334876468,0.03775827,193.79,193.76,0.03949984]
[1739334876969,0.03775827,193.79,193.76,23.03084335]
[1739334877164,0.03775827,193.79,193.78,5.1617]
[1739334877564,0.03775827,193.79,193.77,14.3786605]
[1739334878266,1.5198,193.87,193.81,5.1609]
[1739334878972,6.6792,193.87,193.81,5.1609]
[1739334879169,1.5198,193.87,193.8,14.3786605]
[1739334879465,1.5198,193.87,193.82,0.0376847]
[1739334879670,0.03763414,193.85,193.82,0.0376847]
[1739334879869,5.19753414,193.85,193.82,0.0376847]
[1739334880068,0.03763414,193.85,193.82,0.0376847]
[1739334881470,5.19753414,193.85,193.82,0.0376847]
[1739334881773,0.03763414,193.85,193.82,0.0376847]
[1739334882572,0.03763414,193.85,193.82,5.1981847]
[1739334883574,0.03763414,193.85,193.82,0.0376847]
[1739334884073,0.03763414,193.85,193.73,23.00471738]
[1739334884270,1.5198,193.87,193.73,23.00471738]
[1739334885174,0.036101,193.82,193.78,5.1978961]
[1739334885670,0.036101,193.82,193.72,28.605332]
[1739334886367,5.1627,193.75,193.72,28.605332]
[1739334886672,195.0,193.81,193.72,28.605332]
[1739334886875,0.03290292,193.75,193.72,28.64036173]
[1739334887071,5.19550292,193.75,193.72,28.64036173]
[1739334887265,5.1626,193.75,193.72,28.64036173]
[1739334887575,5.1631,193.73,193.72,28.64036173]
[1739334887777,0.0336083,193.75,193.72,28.64036173]
[1739334888072,0.0336083,193.75,193.72,0.03502973]
[1739334888473,5.1964083,193.75,193.72,0.03502973]
[1739334888673,0.0336083,193.75,193.72,0.03502973]